bitfinex/quotes_SOLUSD_20250316
["timestamp","ask_amount","ask_price","bid_price","bid_amount"]
[1742107173112,14.97491726,136.26,136.25,0.063]
[1742107173820,7.3385,136.27,136.25,0.063]
[1742107173821,34.97491726,136.27,136.25,0.063]
[1742107178421,14.97491726,136.26,136.25,0.063]
[1742107181827,22.31381726,136.26,136.25,0.063]
[1742107182414,82.2134863,136.26,136.25,0.063]
[1742107183813,90.2969863,136.26,136.25,0.063]
[1742107184200,108.94663516,136.26,136.25,0.063]
[1742107184396,109.2309583,136.26,136.25,0.063]
[1742107184620,20.0,136.23,136.22,0.063]
[1742107184816,34.97491726,136.23,136.22,0.063]
[1742107186229,42.31541726,136.23,136.22,0.063]
[1742107189036,14.97491726,136.23,136.22,0.063]
[1742107189224,14.97491726,136.24,136.22,0.063]
[1742107190320,14.97491726,136.23,136.22,0.063]
[1742107191116,22.31541726,136.23,136.22,0.063]
[1742107191311,42.31541726,136.23,136.22,0.063]
[1742107192926,60.96506612,136.23,136.22,0.063]
[1742107193640,42.31541726,136.23,136.22,0.063]
[1742107195030,34.97491726,136.23,136.22,0.063]
[1742107196840,42.31541726,136.23,136.22,0.063]
[1742107205057,60.96506612,136.23,136.22,0.063]
[1742107205641,42.31541726,136.23,136.22,0.063]
[1742107205948,34.97491726,136.23,136.22,0.063]
[1742107206848,42.31541726,136.23,136.22,0.063]
[1742107207143,34.97491726,136.23,136.22,0.063]
[1742107207327,42.31541726,136.23,136.22,0.063]
[1742107207523,82.23,136.25,136.22,0.063]
[1742107207724,0.03,136.25,136.22,0.063]
[1742107208834,0.03,136.25,136.22,15.3222404]
[1742107209029,0.03,136.25,136.24,21.5255404]
[1742107209234,0.03,136.25,136.24,27.7855404]
[1742107209854,0.03,136.25,136.24,46.43518926]
[1742107210048,0.03,136.25,136.24,27.7855404]
[1742107210652,0.03,136.25,136.24,12.5263]
[1742107211450,0.03,136.25,136.24,6.26]
[1742107211659,0.03,136.25,136.23,14.97491726]
[1742107211660,15.00491726,136.25,136.22,0.063]
[1742107212833,0.03,136.25,136.23,14.97491726]
[1742107213033,0.03,136.25,136.22,0.063]
[1742107213034,0.03,136.25,136.22,15.03791726]
[1742107215336,0.03,136.25,136.22,22.37891726]
[1742107216129,0.03,136.25,136.22,15.03791726]
[1742107216844,15.00491726,136.25,136.22,0.063]
[1742107217043,14.97491726,136.23,136.22,0.063]
[1742107217956,22.31541726,136.23,136.22,0.063]
[1742107230272,14.97491726,136.23,136.22,0.063]
[1742107230847,22.31511726,136.24,136.22,0.063]
[1742107232686,15.00491726,136.25,136.22,0.063]
[1742107233057,0.03,136.25,136.22,0.063]
[1742107234213,22.34441726,136.25,136.22,0.063]
[1742107235887,14.97491726,136.24,136.22,0.063]
[1742107236085,15.00491726,136.25,136.22,0.063]
[1742107236803,22.34461726,136.25,136.22,0.063]
[1742107238404,14.97491726,136.24,136.22,0.063]
[1742107239005,15.00491726,136.25,136.22,0.063]
[1742107240983,22.34441726,136.25,136.22,0.063]
[1742107241182,14.97491726,136.24,136.22,0.063]
[1742107242299,15.00491726,136.25,136.22,0.063]
[1742107243600,14.97491726,136.24,136.22,0.063]
[1742107245214,15.00491726,136.25,136.22,0.063]
[1742107245583,14.97491726,136.24,136.22,0.063]
[1742107247203,14.97491726,136.23,136.22,0.063]
[1742107249097,22.31541726,136.23,136.22,0.063]
[1742107253783,14.97491726,136.23,136.22,0.063]
[1742107253984,7.3402,136.24,136.22,0.063]
[1742107253985,14.97491726,136.24,136.22,0.063]
[1742107256474,14.97491726,136.23,136.22,0.063]
[1742107260363,22.31541726,136.23,136.22,0.063]
[1742107261574,14.97491726,136.23,136.22,0.063]
[1742107266190,22.31541726,136.23,136.22,0.063]
[1742107266792,7.3405,136.23,136.22,0.063]
[1742107266987,7.3401,136.24,136.22,0.063]
[1742107267190,20.0,136.23,136.22,0.063]
[1742107267387,7.3696,136.25,136.22,0.063]
[1742107267692,22.34451726,136.25,136.22,0.063]
[1742107268391,14.97491726,136.24,136.22,0.063]
[1742107268590,14.97491726,136.23,136.22,0.063]
[1742107270096,22.31541726,136.23,136.22,0.063]
[1742107271093,42.31541726,136.23,136.22,0.063]
[1742107272878,22.31501726,136.24,136.22,0.063]
[1742107273785,14.97491726,136.23,136.22,0.063]
[1742107274096,22.31541726,136.23,136.22,0.063]
[1742107274402,42.31541726,136.23,136.22,0.063]
[1742107277103,41.24938926,136.23,136.22,0.063]
[1742107277274,14.97491726,136.19,136.18,0.063]
[1742107279296,22.31751726,136.19,136.18,0.063]
[1742107281402,40.96716612,136.19,136.18,0.063]
[1742107282698,0.28432314,136.18,136.17,0.063]
[1742107282875,97.4592404,136.18,136.17,0.063]
[1742107283077,103.41491726,136.18,136.17,0.063]
[1742107283676,97.17491726,136.18,136.17,0.063]
[1742107284098,82.2,136.18,136.17,0.063]
[1742107286706,97.17491726,136.18,136.17,0.063]
[1742107286883,14.97491726,136.18,136.17,0.063]
[1742107287999,22.31771726,136.19,136.17,0.063]
[1742107288204,22.31711726,136.2,136.17,0.063]
[1742107288780,14.97491726,136.2,136.17,0.063]
[1742107289406,7.3418,136.21,136.17,0.063]
[1742107289407,14.97491726,136.21,136.17,0.063]
[1742107289612,14.97491726,136.21,136.17,15.03791726]
[1742107290710,14.97491726,136.21,136.17,22.38141726]
[1742107292004,22.31651726,136.21,136.17,0.063]
[1742107292203,14.97491726,136.2,136.17,0.063]
[1742107295005,22.31651726,136.21,136.17,0.063]
[1742107295183,104.54621726,136.22,136.17,15.03791726]
[1742107295493,97.20491726,136.22,136.17,22.38141726]
[1742107295696,82.23,136.22,136.18,14.97491726]
[1742107297189,0.03,136.22,136.2,14.97491726]
[1742107297594,0.03,136.22,136.19,14.97491726]
[1742107298011,0.03,136.22,136.19,22.31701726]
[1742107298389,0.03,136.22,136.21,14.97491726]
[1742107299813,0.03,136.22,136.2,16.47951726]
[1742107300219,0.03,136.22,136.2,1.5046]
[1742107300600,0.03,136.22,136.2,16.47951726]
[1742107300820,0.03,136.22,136.2,23.82151726]
[1742107303827,0.03,136.22,136.2,8.8466]
[1742107304120,0.03,136.22,136.2,23.82151726]
[1742107304898,0.03,136.22,136.2,16.47951726]
[1742107305121,0.03,136.22,136.2,1.5046]
[1742107305829,0.03,136.22,136.2,23.82151726]
[1742107306528,0.03,136.22,136.21,14.97491726]
[1742107307628,0.03,136.22,136.2,23.82151726]
[1742107308932,0.03,136.22,136.21,22.31651726]
[1742107312226,0.03,136.22,136.21,7.3416]
[1742107314235,0.03,136.22,136.21,22.31651726]
[1742107316528,0.03,136.22,136.21,14.97491726]
[1742107316915,0.03,136.22,136.21,22.31651726]
[1742107317515,0.03,136.22,136.21,41.25048926]
[1742107320639,0.03,136.22,136.2,16.47951726]
[1742107320943,14.97491726,136.21,136.18,0.063]
[1742107321124,14.97491726,136.2,136.18,0.063]
[1742107322736,22.31711726,136.2,136.18,0.063]
[1742107323540,7.3422,136.2,136.18,0.063]
[1742107324333,14.97491726,136.19,136.18,0.063]
[1742107325243,22.31711726,136.2,136.18,0.063]
[1742107326136,14.97491726,136.19,136.18,0.063]
[1742107328343,22.31751726,136.19,136.18,0.063]
[1742107331548,7.3426,136.19,136.18,0.063]
[1742107335434,22.31751726,136.19,136.18,0.063]
[1742107335842,6.50012314,136.18,136.17,0.063]
[1742107336038,1.6487,136.17,136.16,0.063]
[1742107336230,16.62361726,136.17,136.16,0.063]
[1742107337656,23.96731726,136.17,136.16,0.063]
[1742107341872,23.96731726,136.17,136.15,1.021]
[1742107342070,97.17491726,136.16,136.15,1.021]
[1742107343465,22.6035404,136.16,136.14,0.063]
[1742107343648,74.8745863,136.15,136.14,0.0001]
[1742107344583,14.97491726,136.15,136.14,0.0001]
[1742107345773,22.31971726,136.15,136.14,0.0001]
[1742107347672,82.2,136.15,136.14,0.0001]
[1742107348678,97.17491726,136.15,136.14,0.0001]
[1742107350359,104.51971726,136.15,136.14,0.0001]
[1742107350761,104.8040404,136.15,136.14,0.0001]
[1742107350964,164.70370944,136.15,136.14,0.0001]
[1742107353378,82.50370944,136.15,136.13,0.0001]
[1742107353582,74.8745863,136.14,136.13,0.0001]
[1742107353767,81.1745863,136.14,136.13,0.0001]
[1742107354671,81.1745863,136.14,136.12,0.0001]
[1742107354880,14.97491726,136.13,136.12,0.0001]
[1742107355685,22.32081726,136.13,136.12,0.0001]
[1742107356684,22.6051404,136.13,136.12,0.0001]
[1742107358669,0.14216157,136.12,136.11,0.0001]
[1742107358876,15.11707883,136.12,136.11,0.0001]
[1742107360691,22.46347883,136.12,136.11,0.0001]
[1742107364377,22.32131726,136.12,136.11,0.0001]
[1742107366676,7.3464,136.12,136.11,0.0001]
[1742107366876,22.32131726,136.12,136.11,0.0001]
[1742107371676,22.35131726,136.12,136.11,0.0001]
[1742107382706,0.03,136.12,136.11,0.0001]
[1742107384519,15.00491726,136.12,136.11,0.0001]
[1742107385122,0.03,136.12,136.11,0.0001]
[1742107387814,0.03,136.12,136.11,14.97501726]
[1742107388020,0.03,136.12,136.11,33.62466612]
[1742107389126,0.03,136.12,136.11,40.97156612]
[1742107391136,0.03,136.12,136.11,25.99664886]
[1742107392837,0.03,136.12,136.11,40.97156612]
[1742107397744,22.36126439,136.12,136.11,0.0001]
[1742107398038,15.00491726,136.12,136.11,0.0001]
[1742107399841,22.35131726,136.12,136.11,0.0001]
[1742107401640,20.14216157,136.1,136.09,0.0001]
[1742107401939,48.80457883,136.1,136.09,0.0001]
[1742107402539,108.70424787,136.1,136.09,0.0001]
[1742107404335,108.70424787,136.1,136.08,0.0001]
[1742107404642,74.8745863,136.09,136.08,0.0001]
[1742107405029,14.97491726,136.09,136.08,0.0001]
[1742107406143,22.32291726,136.09,136.08,0.0001]
[1742107407141,104.52291726,136.09,136.08,0.0001]
[1742107413553,82.2,136.09,136.08,0.0001]
[1742107415350,89.548,136.09,136.08,0.0001]
[1742107415652,82.2,136.09,136.08,0.0001]
[1742107419249,82.23,136.09,136.08,0.0001]
[1742107419641,104.55291726,136.09,136.08,0.0001]
[1742107423735,104.69507883,136.09,136.08,0.0001]
[1742107424762,22.49507883,136.09,136.08,0.0001]
[1742107428958,22.35291726,136.09,136.08,0.0001]
[1742107460156,22.6372404,136.09,136.08,0.0001]
[1742107460356,34.0967188,136.09,136.08,0.0001]
[1742107460571,93.99638784,136.09,136.08,0.0001]
[1742107462079,112.6460367,136.09,136.08,0.0001]
[1742107462384,112.6460367,136.09,136.03,0.063]
[1742107462385,20.28432314,136.05,136.03,0.063]
[1742107462680,15.11707883,136.04,136.03,0.063]
[1742107464185,22.46777883,136.04,136.03,0.063]
[1742107464361,14.97491726,136.04,136.03,0.063]
[1742107464566,7.3504,136.05,136.03,0.063]
[1742107464767,34.97491726,136.05,136.03,0.063]
[1742107465868,82.2,136.04,136.03,0.063]
[1742107467584,97.17491726,136.04,136.03,0.063]
[1742107469583,82.2,136.04,136.03,0.063]
[1742107470880,34.97491726,136.05,136.03,0.063]
[1742107472091,20.0,136.05,136.03,0.063]
[1742107472877,42.32521726,136.05,136.03,0.063]
[1742107473082,14.97491726,136.04,136.03,0.063]
[1742107475990,42.32521726,136.05,136.03,0.063]
[1742107477493,0.03,136.04,136.03,0.063]
[1742107482195,15.00491726,136.04,136.03,0.063]
[1742107483792,22.35561726,136.04,136.03,0.063]
[1742107484196,0.03,136.04,136.03,0.063]
[1742107484427,0.03,136.04,136.03,15.03791726]
[1742107485185,0.03,136.04,136.03,0.063]
[1742107488807,35.00491726,136.04,136.03,0.063]
[1742107490801,42.35561726,136.04,136.03,0.063]
[1742107503622,42.6399404,136.04,136.02,0.063]
[1742107503808,15.11707883,136.03,136.02,0.063]
[1742107504805,22.46837883,136.03,136.02,0.063]
[1742107510024,22.46837883,136.03,135.98,1.5215]
[1742107510025,20.0,136.0,135.97,0.063]
[1742107510210,14.97491726,135.98,135.97,0.063]
[1742107511416,22.32891726,135.98,135.97,0.063]
[1742107512303,22.32861726,135.99,135.97,0.063]
[1742107512616,14.97491726,135.99,135.97,0.063]
[1742107515126,97.17491726,135.99,135.97,0.063]
[1742107515424,82.2,135.99,135.97,0.063]
[1742107517433,14.97491726,136.01,135.97,0.063]
[1742107520633,22.32711726,136.02,135.97,0.063]
[1742107521008,14.97491726,136.02,135.97,0.063]
[1742107521954,22.32681726,136.02,135.97,0.063]
[1742107522939,14.97491726,136.02,135.97,0.063]
[1742107523245,97.17491726,136.03,135.98,16.61141726]
[1742107523420,82.2,136.03,136.0,14.97491726]
[1742107523615,82.2,136.03,135.99,21.16481726]
[1742107524935,82.2,136.03,135.99,28.51781726]
[1742107526318,97.17491726,136.03,135.99,13.5429]
[1742107526833,14.97491726,136.02,135.98,1.6365]
[1742107528732,22.32691726,136.02,135.98,1.6365]
[1742107532953,7.352,136.02,135.98,16.61141726]
[1742107535549,7.352,136.02,135.98,23.96531726]
[1742107535749,97.17491726,136.03,135.98,23.96531726]
[1742107535937,82.2,136.03,135.99,14.97491726]
[1742107536646,0.03,136.02,135.99,14.97491726]
[1742107537845,0.03,136.02,136.0,14.97491726]
[1742107539350,0.03,136.02,136.0,22.32741726]
[1742107539524,0.03,136.02,135.99,7.3532]
[1742107539729,0.03,136.02,135.99,14.97491726]
[1742107540757,0.03,136.02,135.98,8.9902]
[1742107541049,0.03,136.02,135.99,14.97491726]
[1742107543751,0.03,136.02,135.99,22.32831726]
[1742107549158,0.03,136.02,136.0,14.97491726]
[1742107549960,0.03,136.02,135.99,22.32831726]
[1742107558046,0.03,136.02,136.0,14.97491726]
[1742107558554,0.03,136.02,136.0,21.21491726]
[1742107558957,0.03,136.02,136.01,14.97491726]
[1742107559153,0.03,136.02,136.0,21.21491726]
[1742107559973,0.03,136.02,136.01,7.3524]
[1742107560347,0.03,136.02,136.0,21.21491726]
[1742107560568,0.03,136.02,136.01,14.97491726]
[1742107561270,0.03,136.02,136.0,13.5927]
[1742107561271,0.03,136.02,136.0,28.56761726]
[1742107561454,0.03,136.02,136.0,21.21491726]
[1742107563666,0.03,136.02,136.01,14.97491726]
[1742107564171,0.03,136.02,136.0,21.21491726]
[1742107566664,0.03,136.02,136.0,6.24]
[1742107566865,0.03,136.02,135.97,0.063]
[1742107567078,15.00491726,136.02,135.97,15.03791726]
[1742107567263,20.0,136.0,135.97,0.063]
[1742107567678,34.97491726,136.0,135.97,0.063]
[1742107567867,7.3534,135.99,135.97,0.063]
[1742107569877,27.3531,136.0,135.97,0.063]
[1742107570078,27.3531,136.0,135.97,15.03791726]
[1742107571584,27.3531,136.0,135.97,0.063]
[1742107578097,27.3531,136.0,135.97,15.03791726]
[1742107578262,20.0,136.0,135.98,14.97491726]
[1742107578465,0.03,136.02,135.98,14.97491726]
[1742107578661,0.03,136.02,135.97,0.063]
[1742107578662,0.03,136.02,135.99,14.97491726]
[1742107579790,0.03,136.02,136.0,14.97491726]
[1742107580472,0.03,136.02,136.01,14.97491726]
[1742107581671,0.03,136.02,136.01,22.32731726]
[1742107587389,0.03,136.04,136.02,1.81712314]
[1742107587582,82.2,136.11,136.03,40.14888926]
[1742107587887,37.24269656,136.12,136.08,14.97491726]
[1742107588074,27.87391506,136.12,136.08,21.21491726]
[1742107588495,27.87391506,136.12,136.08,81.1145863]
[1742107588699,27.87391506,136.12,136.08,100.0485583]
[1742107589099,11.36778081,136.12,136.08,100.0485583]
[1742107589583,11.36778081,136.12,136.08,107.3971583]
[1742107590298,0.03,136.12,136.08,107.3971583]
[1742107590501,0.03,136.12,136.08,21.21491726]
[1742107595483,0.03,136.12,136.08,14.97491726]
[1742107595686,14.97491726,136.11,136.07,14.97491726]
[1742107596794,22.32241726,136.11,136.07,14.97491726]
[1742107597884,27.3475,136.11,136.07,14.97491726]
[1742107600010,42.32241726,136.11,136.06,21.21491726]
[1742107600215,42.32241726,136.11,136.06,14.97491726]
[1742107601314,7.378,136.09,136.06,14.97491726]
[1742107603720,0.03,136.09,136.06,14.97491726]
[1742107604116,0.03,136.09,136.07,14.97491726]
[1742107605200,0.03,136.09,136.06,14.97491726]
[1742107607223,0.03,136.09,136.07,14.97491726]
[1742107607714,0.03,136.09,136.08,14.97491726]
[1742107608023,0.03,136.09,136.08,22.32351726]
[1742107609720,0.03,136.09,136.08,88.4631863]
[1742107611929,0.03,136.09,136.08,115.2637583]
[1742107612439,0.0001,136.09,136.08,115.2637583]
[1742107614912,0.0001,136.09,136.08,109.0237583]
[1742107615124,0.0001,136.09,136.08,30.12481726]
[1742107618556,0.0001,136.09,136.08,90.0244863]
[1742107619838,0.0001,136.09,136.08,83.7844863]
[1742107620030,0.0001,136.09,136.08,90.0244863]
[1742107620637,0.0001,136.09,136.08,30.12481726]
[1742107622728,0.0001,136.09,136.08,14.97491726]
[1742107622927,0.0001,136.09,136.07,215.61491726]
[1742107623127,0.0001,136.09,136.07,209.37491726]
[1742107623333,0.0001,136.09,136.07,215.61491726]
[1742107623852,0.0001,136.09,136.07,21.21491726]
[1742107624351,0.0001,136.09,136.06,7.3493]
[1742107624352,0.0001,136.09,136.06,14.97491726]
[1742107624537,0.0001,136.09,136.06,21.21491726]
[1742107625553,0.0001,136.09,136.06,14.97491726]
[1742107625944,0.0001,136.09,136.05,21.21491726]
[1742107627137,0.0001,136.09,136.05,14.97491726]
[1742107628034,14.97501726,136.09,136.04,21.21491726]
[1742107628446,14.97491726,136.07,136.03,15.03791726]
[1742107628646,14.97491726,136.06,136.03,0.063]
[1742107629553,22.32491726,136.06,136.03,0.063]
[1742107629753,22.32421726,136.07,136.03,15.03791726]
[1742107630153,22.32421726,136.07,136.03,0.063]
[1742107633357,14.97491726,136.06,136.03,0.063]
[1742107633554,14.97491726,136.05,136.03,0.063]
[1742107634869,22.32551726,136.05,136.03,0.063]
[1742107635358,105.08341726,136.04,136.03,0.063]
[1742107636774,112.43411726,136.04,136.03,0.063]
[1742107637472,112.57627883,136.04,136.03,0.063]
[1742107638851,105.08341726,136.04,136.03,0.063]
[1742107639060,82.2,136.04,136.03,0.063]
[1742107642175,89.5507,136.04,136.03,0.063]
[1742107642484,104.52561726,136.04,136.03,0.063]
[1742107646801,97.17491726,136.04,136.03,0.063]
[1742107649689,104.52561726,136.04,136.03,0.063]
[1742107657776,89.5507,136.04,136.03,0.063]
[1742107661596,20.0,136.0,135.97,0.063]
[1742107661798,14.97491726,135.98,135.97,0.063]
[1742107663702,22.32891726,135.98,135.97,0.063]
[1742107682011,22.47107883,135.98,135.97,0.063]
[1742107684613,22.32891726,135.98,135.97,0.063]
[1742107692217,22.47107883,135.98,135.97,0.063]
[1742107694501,22.32891726,135.98,135.97,0.063]
[1742107699022,22.32831726,135.99,135.97,0.063]
[1742107702453,7.3534,135.99,135.97,0.063]
[1742107702653,22.32831726,135.99,135.97,0.063]
[1742107704851,22.32891726,135.98,135.97,0.063]
[1742107708152,22.47107883,135.98,135.97,0.063]
[1742107724675,22.32891726,135.98,135.97,0.063]
[1742107724845,14.97491726,135.98,135.97,0.063]
[1742107725369,22.32891726,135.98,135.97,0.063]
[1742107726178,22.32831726,135.99,135.97,0.063]
[1742107726470,14.97491726,135.98,135.97,0.063]
[1742107728867,41.26288926,135.98,135.97,0.063]
[1742107729170,41.26288926,135.98,135.97,0.0001]
[1742107732859,22.47107883,135.98,135.97,0.0001]
[1742107733566,22.32891726,135.98,135.97,0.0001]
[1742107734172,22.47107883,135.98,135.97,0.0001]
[1742107738271,7.49616157,135.98,135.97,0.0001]
[1742107738477,22.47107883,135.98,135.97,0.0001]
[1742107740274,22.32891726,135.98,135.97,0.0001]
[1742107741185,14.97491726,136.0,135.97,0.0001]
[1742107741355,20.0,135.98,135.97,0.0001]
[1742107743380,108.51269807,136.02,135.98,1.5686]
[1742107743565,93.53778081,136.02,135.98,16.54351726]
[1742107743880,100.88968081,136.02,135.98,1.5686]
[1742107744065,14.97491726,136.0,135.98,1.5686]
[1742107744477,22.32821726,136.0,135.97,0.0001]
[1742107744654,14.97491726,135.99,135.97,0.0001]
[1742107745579,14.97491726,136.0,135.97,0.0001]
[1742107746398,82.2,136.02,135.98,14.97491726]
[1742107746679,82.2,136.02,135.99,1.5686]
[1742107746855,0.03,136.03,136.0,14.97491726]
[1742107747058,20.0,136.01,135.99,16.54351726]
[1742107747864,0.03,136.03,135.99,23.89671726]
[1742107748265,20.0,136.02,135.99,23.89671726]
[1742107748484,20.0,136.02,136.0,14.97491726]
[1742107748672,20.0,136.02,135.99,23.89671726]
[1742107750387,20.0,136.02,135.99,16.54351726]
[1742107750860,20.0,136.02,135.99,1.5686]
[1742107752078,14.97491726,136.01,135.97,0.0001]
[1742107752295,14.97491726,136.0,135.97,0.0001]
[1742107752776,14.97491726,135.98,135.97,0.0001]
[1742107753179,34.97491726,135.99,135.97,0.0001]
[1742107753580,14.97491726,135.98,135.97,0.0001]
[1742107754282,22.32891726,135.98,135.97,0.0001]
[1742107754698,104.67107883,135.98,135.97,0.0001]
[1742107756888,104.52891726,135.98,135.97,0.0001]
[1742107758882,22.32891726,135.98,135.97,0.0001]
[1742107770196,41.26288926,135.98,135.97,0.0001]
[1742107770395,101.1625583,135.98,135.97,0.0001]
[1742107770605,20.0,135.95,135.94,0.063]
[1742107770810,34.97491726,135.95,135.94,0.063]
[1742107771308,34.97491726,135.95,135.94,0.0001]
[1742107772409,42.33051726,135.95,135.94,0.0001]
[1742107773847,143.46448926,135.95,135.94,0.0001]
[1742107776809,61.26448926,135.95,135.94,0.0001]
[1742107786947,42.33051726,135.95,135.94,0.0001]
[1742107788242,61.26448926,135.95,135.94,0.0001]
[1742107790650,79.65358926,135.95,135.9,0.063]
[1742107790851,14.97491726,135.91,135.9,0.063]
[1742107792258,22.33271726,135.91,135.9,0.063]
[1742107792754,14.97491726,135.91,135.9,0.063]
[1742107792959,22.33241726,135.92,135.9,0.063]
[1742107796466,14.97491726,135.91,135.9,0.063]
[1742107796959,20.0,135.91,135.9,0.063]
[1742107799461,34.97491726,135.91,135.9,0.063]
[1742107800246,42.33271726,135.91,135.9,0.063]
[1742107804873,34.97491726,135.91,135.9,0.063]
[1742107805054,42.33271726,135.91,135.9,0.063]
[1742107809065,34.97491726,135.91,135.9,0.063]
[1742107809868,42.33271726,135.91,135.9,0.063]
[1742107817256,27.3578,135.91,135.9,0.063]
[1742107817563,42.33271726,135.91,135.9,0.063]
[1742107830559,27.3578,135.91,135.9,0.063]
[1742107831057,42.33271726,135.91,135.9,0.063]
[1742107845990,127.4063583,135.91,135.9,0.063]
[1742107847193,127.4063583,135.91,135.89,0.063]
[1742107847194,18.64964886,135.9,135.89,0.063]
[1742107847392,20.0,135.87,135.85,0.063]
[1742107848292,7.3605,135.86,135.85,0.063]
[1742107850475,26.01014886,135.86,135.85,0.063]
[1742107850681,47.50938926,135.86,135.85,0.063]
[1742107851393,14.97491726,135.86,135.85,0.063]
[1742107852880,22.33541726,135.86,135.85,0.063]
[1742107861412,14.97491726,135.86,135.85,0.063]
[1742107863002,22.33541726,135.86,135.85,0.063]
[1742107868109,40.98506612,135.86,135.85,0.063]
[1742107879817,40.98506612,135.86,135.83,0.063]
[1742107879818,0.28432314,135.84,135.83,0.063]
[1742107879998,75.15890944,135.84,135.83,0.063]
[1742107880413,82.52050944,135.84,135.83,0.063]
[1742107883728,101.1701583,135.84,135.83,0.063]
[1742107883907,26.01124886,135.84,135.83,0.063]
[1742107884103,40.98616612,135.84,135.83,0.063]
[1742107884624,14.97491726,135.84,135.83,0.063]
[1742107884827,34.97491726,135.84,135.83,0.063]
[1742107885004,42.33651726,135.84,135.83,0.063]
[1742107886622,60.98616612,135.84,135.83,0.063]
[1742107887526,120.88583516,135.84,135.83,0.063]
[1742107888326,100.88583516,135.84,135.83,0.063]
[1742107889016,101.1701583,135.84,135.83,0.063]
[1742107891426,20.0,135.81,135.8,0.063]
[1742107891626,34.97491726,135.81,135.8,0.063]
[1742107893425,60.98776612,135.81,135.8,0.063]
[1742107899526,61.27208926,135.81,135.8,0.063]
[1742107900813,60.98776612,135.81,135.8,0.063]
[1742107903129,34.97491726,135.81,135.8,0.063]
[1742107904115,42.33811726,135.81,135.8,0.063]
[1742107906836,60.98776612,135.81,135.8,0.063]
[1742107910337,46.01284886,135.81,135.8,0.063]
[1742107910639,60.98776612,135.81,135.8,0.063]
[1742107917336,27.3632,135.81,135.8,0.063]
[1742107918327,42.33811726,135.81,135.8,0.063]
[1742107921820,60.98776612,135.81,135.8,0.063]
[1742107922221,61.27208926,135.81,135.8,0.063]
[1742107932156,60.98776612,135.81,135.8,0.063]
[1742107933558,42.33811726,135.81,135.8,0.063]
[1742107934262,22.33781726,135.82,135.8,0.063]
[1742107935055,14.97491726,135.81,135.8,0.063]
[1742107935357,22.33811726,135.81,135.8,0.063]
[1742107935763,14.97491726,135.81,135.8,0.063]
[1742107936064,22.33801726,135.82,135.8,0.063]
[1742107936370,14.97491726,135.81,135.8,0.063]
[1742107937062,7.3621,135.83,135.8,0.063]
[1742107937268,34.97491726,135.81,135.8,0.063]
[1742107938344,42.33811726,135.81,135.8,0.063]
[1742107939951,34.97491726,135.81,135.8,0.063]
[1742107941184,42.33811726,135.81,135.8,0.063]
[1742107944387,20.0,135.77,135.72,1.6444]
[1742107944683,14.97491726,135.76,135.72,1.6444]
[1742107945563,22.34111726,135.76,135.72,1.6444]
[1742107958695,22.34111726,135.76,135.72,1.7074]
[1742107959888,14.97491726,135.75,135.72,1.7074]
[1742107960974,22.34191726,135.74,135.72,1.7074]
[1742107961374,22.34161726,135.75,135.72,1.7074]
[1742107962180,14.97491726,135.73,135.72,0.063]
[1742107962716,82.2,135.74,135.72,0.063]
[1742107963006,89.5671,135.74,135.72,0.063]
[1742107964002,82.2,135.74,135.72,0.063]
[1742107967299,104.54201726,135.74,135.72,0.063]
[1742107968511,14.97491726,135.73,135.72,0.063]
[1742107970106,104.54201726,135.74,135.72,0.063]
[1742107973216,82.2,135.73,135.72,0.063]
[1742107976111,89.5675,135.73,135.72,0.063]